bitfinex/quotes_ETHUSD_20260305
["timestamp","ask_amount","ask_price","bid_price","bid_amount"]
[1772739946491,7.28738031,2079.3,2079.0,1.588]
[1772739948986,0.002,2079.1,2079.0,1.588]
[1772739950605,6.08505261,2079.1,2078.5,7.31451351]
[1772739951797,6.08505261,2079.1,2078.6,7.70172999]
[1772739951798,1.2025012,2079.0,2078.6,7.70172999]
[1772739951977,7.28754211,2079.1,2078.6,7.70172999]
[1772739952172,1.2044895,2079.1,2078.7,6.11172999]
[1772739952583,0.002,2079.1,2078.7,6.11172999]
[1772739953906,0.002,2079.1,2078.8,7.31434688]
[1772739958903,0.002,2079.3,2078.9,6.11172999]
[1772739959206,0.002,2079.3,2079.0,7.70372999]
[1772739960200,0.002,2079.3,2079.1,1.20244336]
[1772739960398,0.002,2079.3,2079.1,7.50701513]
[1772739960599,0.002,2079.4,2079.2,6.30457177]
[1772739960790,0.002,2079.4,2079.1,1.20244336]
[1772739961278,6.42060947,2079.4,2078.8,0.001]
[1772739961483,6.42060947,2079.4,2078.5,6.30557177]
[1772739961683,6.42060947,2079.4,2078.6,1.594]
[1772739962080,1.2023277,2079.3,2078.6,1.594]
[1772739962398,6.41860947,2079.2,2078.6,1.594]
[1772739962717,6.41860947,2079.2,2078.6,2.79672491]
[1772739963085,6.41860947,2079.2,2078.6,9.10129668]
[1772739964293,1.20244336,2079.1,2078.6,9.10129668]
[1772739964792,7.62103226,2079.2,2078.6,9.10129668]
[1772739965108,7.62288484,2079.4,2078.7,6.30457177]
[1772739965792,0.002,2079.4,2078.9,6.30457177]
[1772739965987,0.002,2079.4,2079.1,6.30457177]
[1772739966495,0.002,2079.4,2079.2,1.596]
[1772739966496,6.42060947,2079.4,2079.2,1.596]
[1772739966709,6.42060947,2079.4,2078.7,7.50724651]
[1772739967400,6.42060947,2079.4,2078.8,1.20462705]
[1772739967795,6.42060947,2079.4,2078.9,1.597]
[1772739968327,6.42060947,2079.4,2078.5,0.001]
[1772739968624,6.41860947,2079.2,2078.5,1.20562705]
[1772739968805,6.41860947,2079.0,2078.5,0.001]
[1772739970725,6.41860947,2078.8,2078.5,0.001]
[1772739971821,6.41860947,2078.8,2078.5,1.20562705]
[1772739972215,6.41860947,2079.0,2078.5,7.51019882]
[1772739972420,7.6211202,2079.0,2078.5,7.51019882]
[1772739972745,7.6211202,2079.0,2078.5,1.20562705]
[1772739972944,7.6211202,2079.0,2078.5,2.40840558]
[1772739973798,1.20237402,2079.3,2078.6,6.30457177]
[1772739974006,6.42060947,2079.4,2078.8,6.30457177]
[1772739974341,6.42060947,2079.4,2079.0,6.30457177]
[1772739974342,0.002,2079.4,2079.0,6.30457177]
[1772739974521,0.002,2079.4,2079.1,1.20244336]
[1772739975230,0.002,2079.4,2079.0,7.50702657]
[1772739975728,0.002,2079.4,2079.1,1.20462705]
[1772739976319,0.002,2079.4,2079.1,7.50919882]
[1772739976528,0.002,2079.4,2079.1,8.71158619]
[1772739979716,0.002,2079.4,2079.1,7.50795914]
[1772739980107,0.002,2079.4,2079.2,1.20362705]
[1772739980310,0.002,2079.4,2079.3,1.601]
[1772739980527,0.002,2079.6,2079.3,2.80362705]
[1772739980734,0.002,2079.6,2079.4,7.50684165]
[1772739980935,0.002,2079.8,2079.4,7.50684165]
[1772739981134,0.002,2079.8,2079.5,1.20262705]
[1772739981458,0.002,2079.8,2079.5,7.50719882]
[1772739982022,0.002,2079.8,2079.5,7.50619882]
[1772739982953,0.002,2080.1,2079.6,7.50772603]
[1772739983152,0.002,2080.1,2079.7,7.90757177]
[1772739984927,0.002,2080.1,2079.8,1.20203865]
[1772739985139,0.002,2080.1,2079.7,9.10962115]
[1772739985757,0.002,2080.1,2079.7,1.603]
[1772739985959,6.42060947,2080.1,2079.8,1.605]
[1772739986146,6.42060947,2080.1,2079.7,1.20162705]
[1772739986744,0.002,2079.9,2079.7,1.20162705]
[1772739987238,0.002,2079.9,2079.7,2.80662705]
[1772739988260,0.002,2079.9,2079.5,1.20219986]
[1772739988261,6.21669843,2079.9,2079.5,1.606]
[1772739988466,6.21669843,2079.9,2079.6,1.20262705]
[1772739989036,1.20203865,2079.8,2079.6,1.20262705]
[1772739989653,7.41673708,2079.8,2079.5,1.606]
[1772739989848,6.21469843,2079.7,2079.3,0.001]
[1772739991078,7.68794049,2079.6,2079.3,0.001]
[1772739994189,7.68794049,2079.6,2079.0,7.63442944]
[1772739994190,7.68794049,2079.6,2079.0,0.001]
[1772739994482,6.48578623,2079.4,2078.7,0.001]
[1772739994695,7.47590299,2079.5,2078.7,0.001]
[1772739994696,6.48578623,2079.2,2078.7,0.001]
[1772739994979,6.48578623,2079.2,2078.5,0.10456188]
[1772739995143,6.48578623,2078.8,2078.3,1.609]
[1772739995490,6.48578623,2078.8,2078.4,1.20162705]
[1772739997279,1.20267474,2078.7,2078.4,1.20162705]
[1772739997769,11.2963108,2078.8,2078.3,1.609]
[1772739997935,1.20267474,2078.7,2078.3,1.609]
[1772739998135,1.20267474,2078.7,2078.3,2.81190501]
[1772739998364,7.68844956,2078.8,2078.3,1.609]
[1772739999159,7.68844956,2078.8,2078.6,0.001]
[1772739999558,7.68844956,2078.8,2078.4,0.001]
[1772740000164,6.48578623,2079.0,2078.4,0.001]
[1772740000367,7.68819128,2079.2,2078.4,5.92673338]
[1772740001743,7.68819128,2079.2,2078.4,0.001]
[1772740002472,7.68819128,2079.2,2078.4,7.12957978]
[1772740003483,1.20427893,2079.4,2078.4,7.12957978]
[1772740003949,0.002,2079.4,2078.4,7.12957978]
[1772740005562,0.002,2079.4,2078.6,5.92573338]
[1772740005878,0.002,2079.4,2078.8,5.92573338]
[1772740006079,0.002,2079.4,2079.0,5.92573338]
[1772740006251,0.002,2079.6,2079.0,5.92573338]
[1772740008171,0.002,2079.6,2079.1,1.20244336]
[1772740008377,0.002,2079.6,2079.1,7.12817674]
[1772740010281,7.68998592,2079.6,2079.2,1.607]
[1772740010785,0.002,2079.6,2079.2,7.53273338]
[1772740011086,0.002,2079.6,2079.3,5.92573338]
[1772740012286,0.002,2079.6,2079.3,7.12803768]
[1772740012488,0.002,2079.4,2079.3,7.12803768]
[1772740013789,0.002,2079.6,2079.4,5.92573338]
[1772740013987,0.002,2079.9,2079.4,5.92573338]
[1772740014362,0.002,2079.9,2079.5,7.12794545]
[1772740016671,0.002,2079.9,2079.6,1.61]
[1772740017200,4.80676811,2080.4,2079.6,1.61]
[1772740017201,6.48578623,2080.5,2079.7,5.92573338]
[1772740017703,1.20163217,2080.6,2079.7,5.92573338]
[1772740017902,7.6874184,2080.6,2079.7,5.92573338]
[1772740018632,7.6874184,2080.6,2079.8,7.12777203]
[1772740019701,7.6874184,2080.6,2079.9,1.612]
[1772740020601,7.6874184,2080.6,2079.7,5.98465538]
[1772740020831,7.6874184,2080.6,2079.9,1.612]
[1772740022595,7.6874184,2080.6,2079.9,7.59665538]
[1772740022984,7.6874184,2080.6,2079.9,8.79863498]
[1772740023314,7.6874184,2080.6,2079.9,1.612]
[1772740024207,7.6874184,2080.6,2079.5,7.18685186]
[1772740024712,7.6874184,2080.6,2079.2,7.18801994]
[1772740024879,5.92069764,2080.3,2079.2,7.18801994]
[1772740025318,5.92069764,2080.3,2079.4,5.98465538]
[1772740026779,1.20180751,2080.2,2079.3,2.81530978]
[1772740027130,5.92069764,2080.1,2079.3,2.81530978]
[1772740027788,5.92069764,2080.1,2079.3,8.79996516]
[1772740028389,5.92069764,2080.1,2079.4,5.98465538]
[1772740028923,1.20192307,2080.0,2079.5,1.20221207]
[1772740029122,1.20192307,2080.0,2079.5,7.18686745]
[1772740030593,1.20192307,2080.0,2079.5,5.98465538]
[1772740030805,10.72830707,2080.1,2079.5,5.98465538]
[1772740031010,5.92269764,2080.4,2079.7,5.98465538]
[1772740031313,0.002,2080.4,2079.9,5.98465538]
[1772740033316,0.002,2080.4,2080.0,7.18657845]
[1772740035433,5.92269764,2080.4,2079.9,1.20193566]
[1772740036004,5.92269764,2080.4,2079.9,7.18659104]
[1772740037429,7.12439461,2080.4,2080.1,0.001]
[1772740040104,0.002,2080.4,2080.1,0.001]
[1772740040430,0.002,2080.4,2080.1,5.98565538]
[1772740040844,1.20369664,2080.4,2080.1,5.98565538]
[1772740041039,0.002,2080.4,2080.1,5.98565538]
[1772740041713,0.002,2080.4,2080.1,7.18751538]
[1772740042344,0.002,2080.4,2080.1,5.98565538]
[1772740042720,0.002,2080.4,2080.1,0.001]
[1772740044315,5.92269764,2080.4,2080.1,0.001]
[1772740046332,0.002,2080.4,2080.1,5.98565538]
[1772740046635,0.002,2080.6,2080.2,5.98465538]
[1772740047445,1.20358839,2080.6,2080.2,5.98465538]
[1772740047952,6.02784679,2081.1,2080.2,5.98465538]
[1772740048117,6.02784679,2081.1,2080.4,6.2353688]
[1772740048338,6.02784679,2081.3,2080.6,6.2353688]
[1772740048537,1.20118279,2081.3,2080.6,6.2353688]
[1772740049145,1.20114695,2081.4,2080.6,6.2353688]
[1772740049341,7.22894808,2081.5,2080.6,6.2353688]
[1772740050075,7.22892248,2081.5,2080.6,6.2353688]
[1772740050263,1.20101612,2081.6,2080.8,6.08357529]
[1772740050640,0.002,2081.1,2080.8,6.08357529]
[1772740050841,0.002,2081.3,2080.8,6.08357529]
[1772740051768,0.002,2081.6,2080.8,6.08357529]
[1772740051769,1.20300319,2081.6,2080.8,6.08357529]
[1772740052158,0.002,2081.6,2081.0,6.08357529]
[1772740052471,0.002,2081.6,2081.1,7.70157529]
[1772740052772,0.002,2081.6,2081.2,6.08357529]
[1772740054342,6.2878648,2081.3,2081.0,1.618]
[1772740054541,7.4889532,2081.5,2081.0,7.70157529]
[1772740054876,1.2010884,2081.5,2081.0,7.70157529]
[1772740056386,0.002,2081.6,2081.1,7.28486307]
[1772740057364,1.20301894,2081.6,2081.1,7.28486307]
[1772740057667,1.20301894,2081.6,2081.2,1.619]
[1772740057867,0.002,2081.6,2081.2,1.619]
[1772740058387,0.002,2081.6,2081.2,2.8201819]
[1772740058552,0.002,2081.6,2081.1,7.28483132]
[1772740058756,0.002,2081.6,2081.2,1.619]
[1772740059519,0.002,2081.6,2081.3,6.08357529]
[1772740060158,0.002,2081.6,2081.2,1.619]
[1772740060555,0.002,2081.6,2081.2,2.8201805]
[1772740060865,0.002,2081.6,2081.2,8.90375579]
[1772740061454,0.002,2081.6,2081.2,7.70257529]
[1772740061655,6.2898648,2081.6,2080.9,6.08357529]
[1772740061854,6.2898648,2081.6,2081.0,1.62]
[1772740062054,6.2898648,2081.6,2080.8,1.62]
[1772740062651,6.2878648,2081.4,2080.8,8.90503597]
[1772740062881,6.2878648,2081.4,2081.0,0.001]
[1772740063087,6.2898648,2081.4,2081.0,0.001]
[1772740064692,1.20117234,2081.3,2081.0,0.001]
[1772740065393,7.48903714,2081.3,2081.0,0.001]
[1772740068992,7.48904749,2081.3,2081.0,0.001]
[1772740069776,7.48904749,2081.3,2080.8,0.001]
[1772740069968,7.48904749,2081.3,2080.5,0.001]
[1772740071195,7.48915258,2081.1,2080.5,0.001]
[1772740074203,6.2898648,2081.4,2080.5,6.08457529]
[1772740074365,7.49098015,2081.4,2080.5,6.08457529]
[1772740075394,7.49098015,2081.4,2080.6,1.20157646]
[1772740075768,7.49098015,2081.4,2080.5,6.08457529]
[1772740075974,7.49098015,2081.4,2080.5,7.28618423]
[1772740077191,7.49098015,2081.4,2080.7,0.001]
[1772740077390,0.002,2081.2,2080.7,0.001]
[1772740078507,0.002,2081.2,2080.7,6.08457529]
[1772740079009,6.2898648,2081.2,2080.7,0.001]
[1772740079508,1.20128778,2081.1,2080.7,0.001]
[1772740079712,1.20327508,2081.2,2080.7,6.08457529]
[1772740079920,0.002,2081.2,2080.7,6.08457529]
[1772740080088,1.20323149,2081.2,2080.7,6.08457529]
[1772740080887,7.64093809,2081.2,2080.7,6.08457529]
[1772740081089,0.002,2081.2,2080.7,6.08457529]
[1772740081613,0.002,2081.2,2080.8,7.656516]
[1772740081917,0.002,2081.2,2080.8,6.45505503]
[1772740082114,0.002,2081.2,2080.8,8.07405503]
[1772740082295,0.002,2081.2,2080.9,6.45505503]
[1772740082495,0.002,2081.2,2080.8,1.619]
[1772740082496,0.002,2081.6,2081.1,6.45505503]
[1772740083814,6.4397066,2081.6,2081.1,1.619]
[1772740084015,6.4397066,2081.6,2081.1,8.07405503]
[1772740084413,0.002,2081.6,2081.1,8.07405503]
[1772740084912,0.002,2081.6,2081.2,6.45505503]
[1772740085523,6.4397066,2081.6,2081.1,1.619]
[1772740086720,6.4397066,2081.6,2081.1,2.82028555]
[1772740086927,6.4397066,2081.6,2081.1,9.27534058]
[1772740088009,1.20105693,2081.5,2081.1,8.07405503]
[1772740088214,1.20105693,2081.5,2081.1,9.27534148]
[1772740088402,6.4397066,2081.6,2081.1,9.27534148]
[1772740088403,7.64075153,2081.6,2081.1,9.27534148]
[1772740088607,0.002,2081.6,2081.2,6.45505503]
[1772740090095,0.002,2081.6,2081.3,7.65622737]
[1772740090718,0.002,2081.6,2081.3,6.45505503]
[1772740091132,0.002,2081.4,2081.3,6.45505503]
[1772740092230,0.002,2081.4,2081.3,7.65622737]
[1772740093196,0.002,2081.4,2081.3,6.45505503]
[1772740093404,0.002,2081.4,2081.3,7.65622737]
[1772740094548,0.002,2081.4,2081.3,6.45505503]
[1772740094839,0.002,2081.4,2081.1,1.62]
[1772740095625,0.002,2081.4,2081.1,8.07505503]
[1772740096058,0.002,2081.4,2081.2,6.45505503]
[1772740096351,0.002,2081.6,2081.3,7.65622737]
[1772740097015,0.002,2081.6,2081.3,6.45505503]
[1772740097339,7.63830209,2082.3,2081.3,6.45505503]
[1772740098535,7.63830209,2082.3,2081.4,7.65616966]
[1772740098852,7.63830209,2082.3,2081.4,6.45505503]
[1772740100839,7.63830209,2082.3,2081.4,7.65616013]
[1772740101746,7.63830209,2082.3,2081.0,6.45605503]
[1772740101949,6.4377066,2082.1,2081.0,7.65737734]
[1772740102140,6.4377066,2082.1,2081.1,8.07205503]
[1772740102858,6.4377066,2081.7,2081.1,1.617]
[1772740104664,6.4377066,2081.7,2081.4,0.001]
[1772740104848,6.4377066,2081.5,2081.0,0.001]
[1772740105170,6.4377066,2081.5,2081.1,0.001]
[1772740106953,1.20111463,2081.4,2081.1,0.001]
[1772740107735,7.63882123,2081.4,2081.1,0.001]
[1772740108966,7.63882123,2081.4,2080.9,0.001]
[1772740109266,6.27283438,2081.2,2080.9,0.001]
[1772740111463,7.47294549,2081.1,2080.9,0.001]
[1772740111665,7.47265694,2081.6,2080.9,5.90778559]
[1772740112269,7.47259557,2081.8,2080.9,5.90778559]
[1772740113167,6.27165771,2082.0,2080.9,5.90778559]
[1772740113375,7.4724262,2082.0,2081.0,1.2013455]
[1772740113552,7.4724262,2082.0,2081.1,5.90678559]
[1772740113746,7.4724262,2082.0,2081.2,5.90678559]
[1772740115949,7.4724262,2082.0,2081.3,1.20117234]
[1772740116153,7.4724262,2082.0,2081.4,5.90678559]
[1772740119269,7.4724262,2082.0,2081.2,5.90678559]
[1772740119645,0.002,2081.8,2081.2,5.90678559]
[1772740121476,0.002,2081.8,2081.4,5.90678559]
[1772740123681,6.27365771,2081.8,2081.2,5.90678559]
[1772740125278,0.002,2081.8,2081.2,5.90678559]
[1772740125674,0.002,2081.8,2081.4,5.90678559]
[1772740126583,6.27365771,2081.8,2081.2,5.90678559]
[1772740127781,7.47259924,2081.7,2081.2,7.10797416]
[1772740128195,1.20094153,2081.7,2081.2,7.10797416]
[1772740129281,0.002,2081.8,2081.2,7.10797416]
[1772740133407,0.002,2081.6,2081.2,7.10797416]
[1772740133608,0.002,2081.8,2081.3,5.90678559]
[1772740134426,0.002,2082.0,2081.4,5.90678559]
[1772740135324,0.32125748,2082.7,2081.6,0.065536]
[1772740135615,7.16964531,2082.8,2081.8,5.90678559]
[1772740136211,0.8979876,2082.8,2081.8,5.90678559]
[1772740136579,0.8979876,2082.8,2082.0,5.90678559]
[1772740137334,6.27165771,2082.7,2082.1,1.624]
[1772740137517,2.09829821,2082.8,2082.2,5.90678559]
[1772740138288,0.8979876,2082.8,2082.2,5.90678559]
[1772740138608,2.09830695,2082.8,2082.2,5.90678559]
[1772740139017,2.09830695,2082.8,2082.3,7.10738108]
[1772740139237,0.8979876,2082.8,2082.3,7.10738108]
[1772740141390,1.2000475,2083.3,2082.4,6.35949687]
[1772740141602,1.19999532,2083.4,2082.4,6.35949687]
[1772740141806,7.63414383,2083.4,2082.4,6.35949687]
[1772740142405,6.43414851,2083.4,2082.4,6.35949687]
[1772740142717,6.43414851,2083.8,2082.6,6.35949687]
[1772740142933,6.43414851,2083.8,2082.8,6.35949687]
[1772740143225,6.43414851,2083.6,2082.9,1.20024965]
[1772740143388,6.43414851,2083.6,2082.9,6.35949687]
[1772740143791,6.43414851,2083.6,2082.7,1.626]
[1772740145300,6.43414851,2083.4,2082.7,1.626]
[1772740146509,6.43414851,2083.4,2082.1,6.35949687]
[1772740146715,6.43414851,2083.1,2082.1,7.56020545]
[1772740146914,6.43414851,2083.1,2082.4,0.001]
[1772740147306,6.43414851,2082.9,2082.4,0.001]
[1772740149412,7.63445578,2082.8,2082.4,0.001]
[1772740151900,7.63445578,2082.8,2082.1,1.627]
[1772740153826,7.63445578,2082.8,2081.6,6.35949687]
[1772740154224,7.63445578,2082.8,2081.6,7.56047889]
[1772740155034,7.63445578,2082.8,2081.6,9.18647889]
[1772740155327,7.63445578,2082.8,2081.6,7.98549687]
[1772740155530,6.43414851,2082.6,2081.6,7.98549687]
[1772740155729,6.43414851,2082.4,2081.6,7.98549687]
[1772740155900,6.43414851,2082.4,2081.6,9.18648943]
[1772740156723,6.43414851,2082.4,2081.6,7.98549687]
[1772740156926,6.43414851,2082.4,2081.6,1.626]
[1772740157632,6.43414851,2082.2,2081.0,6.35949687]
[1772740157825,6.43414851,2082.0,2081.0,6.35949687]
[1772740159110,6.43414851,2081.8,2080.9,1.627]
[1772740159426,6.43414851,2081.8,2080.9,2.8283995]
[1772740159803,6.43414851,2081.6,2080.9,2.8283995]
[1772740160008,6.43414851,2081.6,2080.9,9.18789637]
[1772740160236,6.43414851,2081.6,2080.9,9.18789785]
[1772740160729,1.20094153,2081.7,2081.1,6.36049687]
[1772740160945,7.634744,2082.3,2081.1,6.36049687]
[1772740161121,7.634744,2082.3,2081.5,6.36049687]
[1772740162035,6.43414851,2082.5,2081.7,6.35949687]
[1772740164226,1.20053784,2082.4,2081.8,7.56038072]
[1772740165246,11.23534561,2082.9,2081.8,7.56038072]
[1772740166145,7.63439816,2082.9,2081.8,7.56038072]
[1772740174458,7.63439816,2082.9,2081.8,7.56138072]
[1772740174665,5.95089304,2082.6,2081.8,7.56138072]
[1772740176731,7.15137323,2082.5,2081.8,7.56138072]
[1772740179642,7.15137323,2082.5,2081.9,1.626]
[1772740179844,7.15137323,2082.5,2081.9,7.72867673]
[1772740180239,7.15137323,2082.5,2082.0,6.10267673]
[1772740180439,1.20048899,2082.5,2082.0,6.10267673]
[1772740180964,1.20048899,2082.5,2082.1,1.20071082]
[1772740181167,1.20048899,2082.5,2082.1,7.30338755]
[1772740181535,7.15135864,2082.6,2082.1,7.30338755]
[1772740181730,1.20240807,2082.7,2082.1,7.30338755]
[1772740181938,0.002,2082.7,2082.1,7.30338755]
[1772740182246,7.15328549,2082.7,2082.1,7.30338755]
[1772740184070,7.15328549,2082.7,2082.1,7.30338606]
[1772740184776,7.15328549,2082.7,2081.9,8.92946443]
[1772740185064,7.15328549,2082.7,2082.0,6.10267673]
[1772740186542,7.15328549,2082.7,2082.1,1.629]
[1772740187077,7.15328549,2082.7,2082.1,8.93235633]
[1772740187946,7.15326922,2082.7,2082.2,6.10267673]
[1772740189068,7.15326922,2082.7,2082.2,7.30329036]
[1772740189675,7.15326922,2082.7,2082.2,6.10267673]
[1772740189878,7.15326922,2082.7,2082.1,1.629]
[1772740191192,7.15326922,2082.7,2082.1,8.93238527]
[1772740193253,7.15326922,2082.7,2082.1,1.629]
[1772740193452,7.15326922,2082.7,2082.2,1.631]
[1772740194786,7.15326922,2082.7,2081.8,4.80442184]
[1772740194787,2.87794326,2082.6,2081.8,0.001]
[1772740195000,5.95089304,2082.4,2081.8,0.001]
[1772740195205,7.15154619,2082.2,2081.8,0.001]
[1772740195486,5.95089304,2082.0,2081.8,0.001]
[1772740197686,7.1517192,2081.9,2081.8,0.001]
[1772740199856,5.95289304,2082.7,2082.0,6.10267673]
[1772740200061,4.80192076,2082.6,2081.8,6.10367673]
[1772740200369,1.20236823,2082.7,2081.8,6.10367673]
[1772740200775,7.52537181,2082.7,2081.8,6.10367673]
[1772740200984,7.52537181,2082.7,2082.1,6.03862083]
[1772740201161,7.52537181,2082.7,2082.2,6.03862083]
[1772740201362,0.002,2082.5,2082.2,6.03862083]
[1772740203265,0.002,2082.5,2082.1,1.631]
[1772740203463,0.002,2082.5,2082.0,6.03962083]
[1772740203691,0.002,2082.5,2081.8,0.001]
[1772740203692,6.32300358,2082.4,2081.8,0.001]
[1772740204781,6.32300358,2082.2,2081.8,0.001]
[1772740205361,1.20059549,2082.3,2081.8,6.03962083]
[1772740205592,1.20055783,2082.4,2081.8,6.03962083]
[1772740206290,7.52356141,2082.4,2081.8,6.03962083]
[1772740206865,7.52356141,2082.4,2081.8,7.24048958]
[1772740207090,7.52356141,2082.4,2081.8,6.03962083]
[1772740207909,7.52356141,2082.4,2081.8,7.24049379]
[1772740208270,7.52356141,2082.4,2081.8,6.03962083]
[1772740208802,1.20055783,2082.4,2081.8,7.24045688]
[1772740209199,11.12713697,2082.5,2081.8,7.24045688]
[1772740209401,7.52548377,2082.5,2081.8,7.24045688]
[1772740209968,7.52548377,2082.5,2081.8,6.03962083]
[1772740210169,7.52548377,2082.5,2081.8,0.001]
[1772740211391,7.52548377,2082.5,2081.8,6.03962083]
[1772740212075,7.52548377,2082.5,2081.8,7.24049179]
[1772740212263,1.20248862,2082.5,2081.8,7.24049179]
[1772740212587,7.5254922,2082.5,2081.8,7.24049179]
[1772740212792,7.5254922,2082.5,2082.0,6.03862083]
[1772740212793,0.002,2082.5,2082.0,6.03862083]
[1772740213297,0.002,2082.5,2082.0,7.23935802]
[1772740213999,0.002,2082.5,2082.0,6.03862083]
[1772740214298,0.002,2082.5,2082.0,7.24038866]
[1772740214696,0.002,2082.3,2082.0,7.24038866]
[1772740216203,0.002,2082.3,2082.0,6.03962083]
[1772740216390,0.002,2082.3,2082.0,0.001]
[1772740216593,6.32500358,2082.3,2081.8,0.001]
[1772740217592,1.20065315,2082.2,2081.8,0.001]
[1772740217800,7.52365673,2082.2,2081.8,0.001]
[1772740219477,1.20065315,2082.2,2081.8,0.001]
[1772740219682,0.002,2082.3,2081.8,6.03962083]
[1772740219888,1.20260081,2082.3,2081.8,6.03962083]
[1772740221886,1.20260081,2082.3,2081.8,7.2404983]
[1772740222593,7.52560439,2082.3,2081.8,6.03962083]
[1772740223995,7.52560439,2082.3,2081.8,7.2404997]
[1772740224691,7.52560439,2082.3,2081.8,6.03962083]
[1772740225585,7.52560439,2082.3,2081.8,7.24049961]
[1772740225812,7.52560439,2082.3,2081.8,6.03962083]
[1772740226704,7.52560439,2082.3,2081.8,0.001]
[1772740229205,7.52560439,2082.3,2082.0,0.001]
[1772740229405,0.002,2082.1,2082.0,0.001]
[1772740229917,7.52560439,2082.3,2082.0,0.001]
[1772740229918,0.002,2082.3,2082.0,6.1920223]
[1772740230896,0.002,2082.3,2082.1,2.83671082]
[1772740231219,0.002,2082.3,2082.2,6.32142941]
[1772740231718,0.002,2082.5,2082.2,6.32142941]
[1772740232422,7.53059294,2083.3,2082.2,6.32142941]
[1772740232724,6.33055392,2082.9,2082.2,6.32142941]
[1772740232925,6.33055392,2082.9,2082.3,1.20059549]
[1772740232926,1.20030727,2082.8,2082.3,1.20059549]
[1772740233230,1.20030727,2082.8,2082.3,6.32142941]
[1772740233231,1.20430727,2082.8,2082.3,6.32142941]
[1772740236118,1.20430727,2082.8,2082.3,7.52202047]
[1772740236296,7.53486119,2082.8,2082.3,6.32142941]
[1772740236502,6.33455392,2082.7,2082.1,7.95742941]
[1772740236709,6.33455392,2082.7,2082.1,1.636]
[1772740236914,6.33055392,2082.5,2082.1,1.636]
[1772740237422,6.33455392,2082.4,2082.0,0.001]
[1772740237622,6.33055392,2082.4,2082.0,0.001]
[1772740237826,0.004,2082.3,2082.0,1.2017629]
[1772740237997,7.53104001,2082.5,2082.0,7.52319231]
[1772740238393,7.53104001,2082.5,2082.0,6.32242941]
[1772740240332,0.004,2082.4,2082.0,6.32242941]
[1772740240906,0.004,2082.4,2082.0,0.001]
[1772740241119,0.004,2082.4,2082.0,6.32242941]
[1772740241437,6.33455392,2082.4,2082.0,0.001]
[1772740241641,6.33455392,2082.4,2082.2,0.001]
[1772740242426,1.20059549,2082.3,2082.2,0.001]
[1772740243023,7.53114941,2082.3,2082.0,0.001]
[1772740243339,0.004,2082.2,2082.0,0.001]
[1772740243636,0.004,2082.2,2082.0,6.32242941]
[1772740245007,0.004,2082.2,2082.0,0.001]
[1772740246114,0.004,2082.2,2081.9,1.637]
[1772740246322,7.53132241,2082.0,2081.7,0.001]
[1772740246829,6.33055392,2081.9,2081.3,0.001]
[1772740247006,6.33355392,2081.9,2081.3,7.52359151]
[1772740247826,6.33355392,2081.9,2081.3,6.32242941]
[1772740248041,6.33355392,2081.9,2081.3,7.96242941]
[1772740248730,1.20088385,2081.8,2081.3,7.96242941]
[1772740249040,7.53143777,2081.8,2081.3,7.96242941]
[1772740250338,6.33355392,2081.7,2081.3,1.641]
[1772740250935,1.20099923,2081.6,2081.3,1.641]
[1772740251235,7.53453873,2081.7,2081.3,1.641]
[1772740251444,0.003,2081.6,2081.3,1.641]
[1772740252020,7.53153873,2081.7,2081.3,1.641]
[1772740252321,0.003,2081.6,2081.3,1.641]
[1772740252733,0.003,2081.6,2081.3,1.642]
[1772740253844,0.003,2081.6,2081.5,0.001]
[1772740254025,6.33355392,2081.6,2081.5,0.001]
[1772740254228,0.003,2081.6,2081.5,0.001]
[1772740255241,6.33055392,2081.5,2081.2,0.1546227]
[1772740255444,1.20111463,2081.4,2081.2,0.1546227]
[1772740255743,7.5316531,2081.5,2081.2,0.1546227]
[1772740255946,0.003,2081.4,2081.2,0.1546227]
[1772740256454,0.003,2081.4,2081.1,0.001]
[1772740256455,6.33355392,2081.4,2081.1,0.001]
[1772740257344,0.003,2081.4,2081.1,7.52371027]
[1772740257820,0.003,2081.4,2081.1,6.32242941]
[1772740258845,0.003,2081.4,2081.1,0.001]
[1772740259050,0.003,2081.4,2081.1,1.20228744]
[1772740259651,6.33355392,2081.4,2081.0,0.001]
[1772740261548,0.003,2081.4,2081.0,7.46470621]
[1772740261936,5.97760101,2081.3,2080.8,0.001]
[1772740263624,5.97760101,2081.1,2080.8,0.001]
[1772740264622,0.003,2081.0,2080.8,0.001]
[1772740264827,0.003,2081.0,2080.7,0.001]
[1772740264828,5.97760101,2080.9,2080.7,0.001]
[1772740265231,1.20123005,2081.2,2080.7,6.26339361]
[1772740265555,0.003,2081.0,2080.7,6.26339361]
[1772740266652,0.003,2081.0,2080.8,0.001]
[1772740268243,5.97760101,2081.5,2080.9,6.26239361]
[1772740268443,5.98060101,2081.5,2080.8,0.001]
[1772740269752,5.97760101,2081.3,2080.7,0.001]
[1772740270286,5.97760101,2081.1,2080.7,0.001]
[1772740272053,7.17894651,2081.0,2080.7,0.001]
[1772740272474,5.97760101,2080.8,2080.7,0.001]
[1772740274196,5.97760101,2081.1,2080.7,0.001]
[1772740274551,5.97760101,2080.9,2080.7,0.001]
[1772740276001,0.003,2080.8,2080.5,1.645]
[1772740276200,1.20157646,2080.6,2080.5,1.645]
[1772740276410,1.20157646,2080.6,2080.2,6.26339361]
[1772740276706,7.17916028,2080.7,2080.2,7.46518998]
[1772740277006,1.20451991,2080.7,2080.2,7.46518998]
[1772740277561,1.20451991,2080.7,2080.2,9.11118998]
[1772740277761,1.20451991,2080.7,2080.3,6.26239361]
[1772740278396,0.003,2080.7,2080.3,7.4641129]
[1772740279589,0.003,2080.7,2080.4,6.26339361]
[1772740280288,0.002,2081.1,2080.4,6.26339361]
[1772740280487,0.002,2081.1,2080.6,6.26239361]
[1772740280687,0.002,2081.1,2080.8,6.26239361]
[1772740283597,0.002,2081.1,2080.8,7.46385297]
[1772740283900,0.003,2081.1,2080.8,7.46385297]
[1772740287418,1e-08,2081.3,2080.9,6.26239361]
[1772740288116,6.43431886,2081.3,2081.0,1.649]
[1772740289202,1e-08,2081.3,2081.0,1.649]